Cogmind - Beta 12 @@@ ROGUE MODE // 2023.04.19 @ 18:40:56 Player: Mr Goldstein Result: Destroyed by B-75 Beast with Heavy Plasma Cannon Performance ------------- Evolutions (4) 2000 Regions Visited (8) 1600 Robots Destroyed (0) 0 Value Destroyed (0) 0 Prototype IDs (0) 0 Alien Tech Used (0) 0 Bonus (1325) 1325 TOTAL SCORE: 4925 Bonus ------- Pacifist 1325 Cogmind --------- Core Integrity 0/850 Matter 168/300 Energy 99/100 System Corruption 5% Temperature Cool (12) Movement Core (50) Location -6/Extension Parts ------- > --- POWER (2) -------- (None) > --- PROPULSION (7) --- (None) > --- UTILITY (4) ------ (None) > --- WEAPON (2) ------- (None) > --- INVENTORY (5) ---- Ion Engine Nuclear Pulse Thruster Small Storage Unit Heavy Mace Peak State ------------ > --- POWER ------------ (None) > --- PROPULSION ------- VTOL Module > --- UTILITY ---------- (None) > --- WEAPON ----------- (None) > --- INVENTORY -------- Ion Engine Nuclear Pulse Thruster Small Storage Unit Heavy Mace [Rating: 3] Favorites ----------- Power None Propulsion VTOL Module Flight Unit VTOL Module Utility None Weapon None Build | -11 -10 -9 -8 -7 -6 -6 -6 -6 ------- Run | Jun Mat Mat Mat Fac Fac Was Fac Ext Slots Evolved 8 | . . 2 2 2 2 . . . Power 1 | . . . . . 1 . . . Propulsion 5 | . . 2 2 1 . . . . Utility 2 | . . . . 1 1 . . . Weapon . | . . . . . . . . . Parts Attached 2 | . . . . 1 . . 1 . Power . | . . . . . . . . . Engine . | . . . . . . . . . Core . | . . . . . . . . . Reactor . | . . . . . . . . . Propulsion 2 | . . . . 1 . . 1 . Treads . | . . . . . . . . . Leg . | . . . . . . . . . Wheel . | . . . . . . . . . Hover . | . . . . . . . . . Flight 2 | . . . . 1 . . 1 . Utility . | . . . . . . . . . Device . | . . . . . . . . . Storage . | . . . . . . . . . Processor . | . . . . . . . . . Hackware . | . . . . . . . . . Protection . | . . . . . . . . . Artifact . | . . . . . . . . . Weapon . | . . . . . . . . . Energy Gun . | . . . . . . . . . Energy Cannon . | . . . . . . . . . Ballistic Gun . | . . . . . . . . . Ballistic Cannon . | . . . . . . . . . Launcher . | . . . . . . . . . Special Weapon . | . . . . . . . . . Impact Weapon . | . . . . . . . . . Slashing Weapon . | . . . . . . . . . Piercing Weapon . | . . . . . . . . . Special Melee Weapon . | . . . . . . . . . Unidentified Prototypes . | . . . . . . . . . Parts Lost 2 | . . . . 1 . . . 1 Power . | . . . . . . . . . Propulsion 2 | . . . . 1 . . . 1 Utility . | . . . . . . . . . Weapon . | . . . . . . . . . Highest Loss Streak 1 | . . . . 1 . . . 1 To Critical Strikes . | . . . . . . . . . Average Slot Usage (%) 1 | . . . . 2 . . 2 4 Flight 1 | . . . . 2 . . 2 4 Naked Turns 358 | . 33 58 50 39 79 38 50 11 Heaviest Build . | . . . . . . . . . Greatest Support 4 | 3 3 3 3 4 3 3 4 4 Greatest Overweight (x) . | . . . . . . . . . Average Overweight (x) . | . . . . . . . . . Largest Inventory Capacity 5 | 5 5 5 5 5 5 5 5 5 Average Capacity 5 | 5 5 5 5 5 5 5 5 5 Most Carried 5 | 2 2 2 4 4 3 4 5 4 Average Carried 3 | 1 2 2 2 3 3 3 4 4 Final Capacity 5 | 5 5 5 5 5 5 5 5 5 Final Carried 4 | 2 2 2 4 3 3 4 4 4 Class Distribution -------------------- 100% | Mutant Dominant Class ---------------- Mutant | -10/Materials Mutant | -9/Materials Mutant | -8/Materials Mutant | -7/Factory Mutant | -6/Factory Mutant | -6/Waste Mutant | -6/Factory Mutant | -6/Extension Resources | -11 -10 -9 -8 -7 -6 -6 -6 -6 ----------- Run | Jun Mat Mat Mat Fac Fac Was Fac Ext Matter Collected 94 | 94 . . . . . . . . Remotely . | . . . . . . . . . Salvage Created . | . . . . . . . . . Parts . | . . . . . . . . . Haulers Intercepted . | . . . . . . . . . Recyclers Shooed . | . . . . . . . . . Parts Field Recycled . | . . . . . . . . . Retrieved Matter . | . . . . . . . . . Parts Self-Destructed . | . . . . . . . . . Prevented . | . . . . . . . . . Kills | -11 -10 -9 -8 -7 -6 -6 -6 -6 ------- Run | Jun Mat Mat Mat Fac Fac Was Fac Ext Combat Hostiles Destroyed . | . . . . . . . . . Classes Destroyed . | . . . . . . . . . Best Kill Streak . | . . . . . . . . . Combat Bots Only . | . . . . . . . . . Max Kills in Single Turn . | . . . . . . . . . Gunslinging . | . . . . . . . . . Exploded . | . . . . . . . . . Melee . | . . . . . . . . . Uniques/NPCs Destroyed . | . . . . . . . . . Combat | -11 -10 -9 -8 -7 -6 -6 -6 -6 -------- Run | Jun Mat Mat Mat Fac Fac Was Fac Ext Damage Taken 1548 | . 107 214 142 197 39 41 315 493 Core 1488 | . 107 214 142 165 39 41 292 488 Absorbed by Shields . | . . . . . . . . . Core Remaining (%) 70 | 100 57 46 74 76 . . . . Volleys Fired . | . . . . . . . . . Largest . | . . . . . . . . . Hottest . | . . . . . . . . . Shots Fired . | . . . . . . . . . Gun . | . . . . . . . . . Cannon . | . . . . . . . . . Launcher . | . . . . . . . . . Special . | . . . . . . . . . Kinetic . | . . . . . . . . . Thermal . | . . . . . . . . . Explosive . | . . . . . . . . . Electromagnetic . | . . . . . . . . . Robot Hit Streak . | . . . . . . . . . Robot Miss Streak . | . . . . . . . . . Penetration Max . | . . . . . . . . . Secondary Targets . | . . . . . . . . . Shots Hit Robots . | . . . . . . . . . Core Hits . | . . . . . . . . . Critical Kills . | . . . . . . . . . Critical Parts Destroyed . | . . . . . . . . . Critical Strikes . | . . . . . . . . . Melee Attacks . | . . . . . . . . . Impact . | . . . . . . . . . Slashing . | . . . . . . . . . Piercing . | . . . . . . . . . Sneak Attacks . | . . . . . . . . . Combat Hostiles . | . . . . . . . . . Follow-up Attacks . | . . . . . . . . . Damage Inflicted . | . . . . . . . . . Guns . | . . . . . . . . . Cannons . | . . . . . . . . . Explosions . | . . . . . . . . . Melee . | . . . . . . . . . Ramming . | . . . . . . . . . Kinetic . | . . . . . . . . . Thermal . | . . . . . . . . . Explosive . | . . . . . . . . . Electromagnetic . | . . . . . . . . . Impact . | . . . . . . . . . Slashing . | . . . . . . . . . Piercing . | . . . . . . . . . Highest Corruption 5 | . . . . . . 5 5 5 Average Corruption 5 | . . . . . . 5 5 5 Corruption Purged . | . . . . . . . . . Corruption Blocked . | . . . . . . . . . Effects 5 | . . . . . . 1 3 1 Message Errors 1 | . . . . . . . 1 . Matter Fused 2 | . . . . . . 1 1 . Heat Flow Errors 1 | . . . . . . . . 1 Data Loss (minor) 1 | . . . . . . . 1 . Overload Shots . | . . . . . . . . . Overflow Damage . | . . . . . . . . . Projectiles . | . . . . . . . . . Explosions . | . . . . . . . . . Melee . | . . . . . . . . . Knockbacks . | . . . . . . . . . Impact . | . . . . . . . . . Kinetic . | . . . . . . . . . Secondary . | . . . . . . . . . Self-Inflicted Damage . | . . . . . . . . . Shots . | . . . . . . . . . Rammed . | . . . . . . . . . Targets Rammed . | . . . . . . . . . Kicked . | . . . . . . . . . Crushed . | . . . . . . . . . Highest Temperature 208 | . . . . . . . . 208 Average Temperature 108 | . . . . . . . . 108 Received Heat Transfer 381 | . 24 108 54 27 18 . 36 114 Siege Activations . | . . . . . . . . . Robots Corrupted . | . . . . . . . . . Combat Hostiles . | . . . . . . . . . Parts Fried . | . . . . . . . . . Impact Corruptions . | . . . . . . . . . Robots Melted . | . . . . . . . . . Combat Hostiles . | . . . . . . . . . Parts Melted . | . . . . . . . . . Heat Transferred . | . . . . . . . . . Parts Sabotaged . | . . . . . . . . . Parts Stolen . | . . . . . . . . . Parts Stripped . | . . . . . . . . . Power Chain Reactions . | . . . . . . . . . Missiles Intercepted . | . . . . . . . . . Alert | -11 -10 -9 -8 -7 -6 -6 -6 -6 ------- Run | Jun Mat Mat Mat Fac Fac Was Fac Ext Peak Influence 69 | . 15 5 55 37 69 39 46 52 Initial 27 | . . 5 1 24 12 24 27 22 Average 26 | . 3 5 20 34 38 27 39 28 Maximum Alert Level . | . . . . . . . . . Low Security (%) 100 | 100 100 100 100 100 100 100 100 100 Level 1 . | . . . . . . . . . Level 2 . | . . . . . . . . . Level 3 . | . . . . . . . . . Level 4 . | . . . . . . . . . Level 5 . | . . . . . . . . . High Security . | . . . . . . . . . Max Security . | . . . . . . . . . Squads Dispatched 6 | . 1 4 . 1 . . . . Investigation 3 | . . 3 . . . . . . Extermination . | . . . . . . . . . Reinforcement 3 | . 1 1 . 1 . . . . Assault . | . . . . . . . . . Garrison . | . . . . . . . . . Intercept . | . . . . . . . . . Searches Triggered . | . . . . . . . . . Construction Impeded . | . . . . . . . . . Haulers Reinforced . | . . . . . . . . . Active Scanning Responses . | . . . . . . . . . Cargo Convoy Interrupts . | . . . . . . . . . Stealth | -11 -10 -9 -8 -7 -6 -6 -6 -6 --------- Run | Jun Mat Mat Mat Fac Fac Was Fac Ext Distress Signals 1 | . . 1 . . . . . . Communications Jammed . | . . . . . . . . . Distress Signals . | . . . . . . . . . Times Spotted 41 | . 7 10 5 7 1 5 2 4 Peak Tracking Total 13 | . 6 13 6 6 1 5 2 4 Tactical Retreats . | . . . . . . . . . Traps | -11 -10 -9 -8 -7 -6 -6 -6 -6 ------- Run | Jun Mat Mat Mat Fac Fac Was Fac Ext Traps Triggered 3 | . . 2 . . 1 . . . Indirectly . | . . . . . . . . . Trap Hack Attempts . | . . . . . . . . . Triggered . | . . . . . . . . . Disarmed . | . . . . . . . . . Reprogrammed . | . . . . . . . . . Reused . | . . . . . . . . . Traps Extracted . | . . . . . . . . . Installed . | . . . . . . . . . Triggered . | . . . . . . . . . Machines | -11 -10 -9 -8 -7 -6 -6 -6 -6 ---------- Run | Jun Mat Mat Mat Fac Fac Was Fac Ext Machines Disabled . | . . . . . . . . . Max in Single Turn . | . . . . . . . . . Machines Repaired . | . . . . . . . . . Machines Sabotaged . | . . . . . . . . . Overloaded Fab Kills . | . . . . . . . . . Hacking | -11 -10 -9 -8 -7 -6 -6 -6 -6 --------- Run | Jun Mat Mat Mat Fac Fac Was Fac Ext Machines Accessed 7 | . . 1 1 1 3 . 1 . Terminals 7 | . . 1 1 1 3 . 1 . Fabricators . | . . . . . . . . . Repair Stations . | . . . . . . . . . Recycling Units . | . . . . . . . . . Scanalyzers . | . . . . . . . . . Garrison Access . | . . . . . . . . . Total Hacks 15 | . . 5 2 2 5 . 1 . Successful 7 | . . . 1 2 3 . 1 . Failed 8 | . . 5 1 . 2 . . . Catastrophic 1 | . . 1 . . . . . . Database Lockouts . | . . . . . . . . . Manual 8 | . . 5 2 1 . . . . Terminals 15 | . . 5 2 2 5 . 1 . Fabricators . | . . . . . . . . . Repair Stations . | . . . . . . . . . Recycling Units . | . . . . . . . . . Scanalyzers . | . . . . . . . . . Garrison Access . | . . . . . . . . . Terminal Hacks 7 | . . . 1 2 3 . 1 . Open Door 1 | . . . . . . . 1 . Level Access Points 1 | . . . 1 . . . . . Branch Access Points 1 | . . . . 1 . . . . Zone Layout 4 | . . . . 1 3 . . . Fabricator Hacks . | . . . . . . . . . Repair Station Hacks . | . . . . . . . . . Recycling Unit Hacks . | . . . . . . . . . Scanalyzer . | . . . . . . . . . Garrison Access Hacks . | . . . . . . . . . Unauthorized Hacks . | . . . . . . . . . Terminals . | . . . . . . . . . Fabricators . | . . . . . . . . . Repair Stations . | . . . . . . . . . Recycling Units . | . . . . . . . . . Scanalyzers . | . . . . . . . . . Garrison Access . | . . . . . . . . . Data Cores Recovered . | . . . . . . . . . Used . | . . . . . . . . . Hacking Detections 3 | . . 1 . 1 1 . . . Full Trace Events 1 | . . 1 . . . . . . Feedback Events . | . . . . . . . . . Feedback Blocked . | . . . . . . . . . Robot Schematics Acquired . | . . . . . . . . . Robots Built . | . . . . . . . . . Authchips . | . . . . . . . . . Time . | . . . . . . . . . Total Robot Build Rating . | . . . . . . . . . Part Schematics Acquired . | . . . . . . . . . Parts Built . | . . . . . . . . . Authchips . | . . . . . . . . . Time . | . . . . . . . . . Total Part Build Rating . | . . . . . . . . . Parts Repaired . | . . . . . . . . . Time . | . . . . . . . . . Parts Recycled . | . . . . . . . . . Recycled Matter . | . . . . . . . . . Retrieved Matter . | . . . . . . . . . Retrieved Components . | . . . . . . . . . Parts Scanalyzed . | . . . . . . . . . Part Schematics Acquired . | . . . . . . . . . Parts Damaged . | . . . . . . . . . Bothacking | -11 -10 -9 -8 -7 -6 -6 -6 -6 ------------ Run | Jun Mat Mat Mat Fac Fac Was Fac Ext Used RIF Installer . | . . . . . . . . . Robots Hacked . | . . . . . . . . . Non-combat . | . . . . . . . . . Combat . | . . . . . . . . . Robot Hacks Applied . | . . . . . . . . . Relay Couplers Released . | . . . . . . . . . Fabnet Peak Effective % . | . . . . . . . . . Robots Rewired . | . . . . . . . . . Allies Hacked . | . . . . . . . . . Hacks Repelled . | . . . . . . . . . Allies | -11 -10 -9 -8 -7 -6 -6 -6 -6 -------- Run | Jun Mat Mat Mat Fac Fac Was Fac Ext Total Allies . | . . . . . . . . . Largest Group . | . . . . . . . . . Highest-Rated Group . | . . . . . . . . . Highest-Rated Ally . | . . . . . . . . . Total Orders . | . . . . . . . . . Ally Attacks . | . . . . . . . . . Total Damage . | . . . . . . . . . Kills . | . . . . . . . . . Allies Corrupted . | . . . . . . . . . Allies Melted . | . . . . . . . . . Intel | -11 -10 -9 -8 -7 -6 -6 -6 -6 ------- Run | Jun Mat Mat Mat Fac Fac Was Fac Ext Robot Analysis Total . | . . . . . . . . . Derelict Logs Recovered . | . . . . . . . . . Drone Launches . | . . . . . . . . . Drone Recoveries . | . . . . . . . . . Exploration | -11 -10 -9 -8 -7 -6 -6 -6 -6 ------------- Run | Jun Mat Mat Mat Fac Fac Was Fac Ext Turns Passed 454 | 13 33 58 50 59 79 38 82 42 Spaces Moved 959 | 22 66 115 96 133 157 74 186 110 Core 727 | 22 66 115 96 79 157 74 96 22 Treads . | . . . . . . . . . Legs . | . . . . . . . . . Wheels . | . . . . . . . . . Hover . | . . . . . . . . . Flight 232 | . . . . 54 . . 90 88 Fastest Speed 35 | 50 50 50 50 35 50 50 35 35 Average Speed 46 | 50 50 50 50 43 50 50 42 38 Slowest Speed 50 | 50 50 50 50 50 50 50 50 50 Overloaded Moves . | . . . . . . . . . Propulsion Burnouts . | . . . . . . . . . Robots Hopped 10 | . . . . 6 . . 3 1 Cave-ins Triggered . | . . . . . . . . . Exploration Rate (%) 20 | 3 24 15 15 3 7 75 7 31 Regions Visited 8 Branch Regions 1 Pre-discovered Areas . | . . . . . . . . . Known Exits Taken 1 | . . . 1 . . . . . Unknown Exits Taken 5 | 1 1 1 . 1 . . 1 . Scrap Searched . | . . . . . . . . . Spaces Dug . | . . . . . . . . . Terrain Destroyed . | . . . . . . . . . Melee . | . . . . . . . . . Projectile . | . . . . . . . . . AOE . | . . . . . . . . . Terrain Rammed . | . . . . . . . . . Walls Destroyed . | . . . . . . . . . Machines Disabled . | . . . . . . . . . Actions | -11 -10 -9 -8 -7 -6 -6 -6 -6 --------- Run | Jun Mat Mat Mat Fac Fac Was Fac Ext Total 950 | 23 65 114 97 127 157 74 184 109 Wait . | . . . . . . . . . Move 933 | 21 65 114 95 121 157 73 179 108 Hop 9 | . . . . 5 . . 3 1 Pick Up 6 | 2 . . 2 . . 1 1 . Fast Attach . | . . . . . . . . . Attach 2 | . . . . 1 . . 1 . Detach . | . . . . . . . . . Swap . | . . . . . . . . . Drop . | . . . . . . . . . Fire . | . . . . . . . . . Melee . | . . . . . . . . . Ram . | . . . . . . . . . Kick . | . . . . . . . . . Crush . | . . . . . . . . . Escape Stasis . | . . . . . . . . . Rewire . | . . . . . . . . . Trap . | . . . . . . . . . Miscellaneous . | . . . . . . . . . Route ------- -11/Junkyard -10/Materials -9/Materials -8/Materials (discovered 3 exits: *Fac x3) -7/Factory (discovered 3 exits: *Fac / Low x2) -6/Factory -6/Waste -6/Factory -6/Extension History --------- Turn | Location | Event 2 | -11/Junkyard | Met Revision 17 2 | -11/Junkyard | Discovered new exit (range 16) 14 | -11/Junkyard | Entered Materials 42 | -10/Materials | Discovered new exit (range 11) 47 | -10/Materials | Entered another Materials area 47 | -9/Materials | Evolved 2 slots: Propulsion x2 97 | -9/Materials | Discovered new exit (range 15) 104 | -9/Materials | Core integrity fell below 50% 105 | -9/Materials | Entered another Materials area 105 | -8/Materials | Evolved 2 slots: Propulsion x2 134 | -8/Materials | Identified exit to Factory 155 | -8/Materials | Entered Factory 155 | -7/Factory | Evolved 2 slots: Propulsion x1, Utility x1 163 | -7/Factory | Identified exit to Lower Caves 208 | -7/Factory | Discovered new exit (range 15) 214 | -7/Factory | Entered another Factory area 214 | -6/Factory | Evolved 2 slots: Power x1, Utility x1 293 | -6/Factory | Sucked down chute 293 | -6/Factory | Entered Waste 308 | -6/Waste | Build established: Mutant 308 | -6/Waste | EMP discharged 310 | -6/Waste | Spotted C-40 Crusher 312 | -6/Waste | Spotted C-40 Crusher 318 | -6/Waste | Spotted C-40 Crusher 319 | -6/Waste | Spotted C-40 Crusher 322 | -6/Waste | Discovered new exit (range 14) 326 | -6/Waste | Spotted C-40 Crusher 331 | -6/Waste | Entered Factory 412 | -6/Factory | Discovered new exit (range 5) 413 | -6/Factory | Entered Extension 439 | -6/Extension | Spotted B-75 Beast 442 | -6/Extension | Spotted B-75 Beast 445 | -6/Extension | Core integrity fell below 50% 451 | -6/Extension | Core integrity fell below 20% 455 | -6/Extension | Destroyed by B-75 Beast with Heavy Plasma Cannon Last Messages --------------- 00347_ NZ>CJEW9RVZZX NJ4SHBMYWP 5>ODEVOMMV 00373_ System corrupted: Matter fused (-8). 00375_ Acquired Hvy. Mace. 00392_ System corrupted: Component data lost. 00393_ ALERT: All DSF locations entering lockdown mode. 00404_ Penetrated by Slug. 00406_ Knocked back. 00408_ Penetrated by Slug. 00412_ Connecting with Door Terminal... 00412_ Current location identified: Factory >>Open(Door) Sealed Blast Doors opened. 00412_ EXIT=FOUND LOCATION=UNKNOWN GOAL=ESCAPE 00414_ A-15 Conveyor exits Transfer Station. 00423_ System corrupted: Heat flow error (+241). 00444_ VTOL Module destroyed. 00446_ Machine disabled. 00449_ Knocked back. Map ----- +----------------------------------------------------+ | ?????????????????????????????????????????????????? | | ?????????????????????????????????????????????????? | | ?????????????????????????????????????????????????? | | ?????????????????????????????????????????????????? | | ?????????????????????????????????????????????????? | | ?????????????????????????????????????????????????? | | ?????????????????????????????????????????????????? | | ????????????? ??????????????????????????????????? | | ????????????? ??????????????????????????????????? | | ??? ????????? ??????????????????????????????????? | | ??? ????????# #?????????????????????????????????? | | ??# ????????? ?????????????????????????????????? | | ??# #???????? #?????????????????????????????????? | | ??# #???????? #?????????????????????????????????? | | ??# #???????? #?????????????????????????????????? | | ??# #?######?# #?????????????????????????????????? | | ### ### ## ### ###???????????????????????????????? | | #"" "" "" " #???????????????????????????????? | | " " " " #???????????????????????????????? | | # #???????????????????????????????? | | # #???????????????????????????????? | | # #######################?????????? | | ?????????? | | % % u ????????? | | ????????? | | % @ A ????????? | | ????????? | | " BB #####################???????????? | | # #???????????????????????????????? | | # #???????????????????????????????? | | # #???????????????????????????????? | | # #???????????????????????????????? | | ######T#"""#######???????????????????????????????? | | ?????###?????????????????????????????????????????? | | ?????????????????????????????????????????????????? | | | | | | | | | | | | | | | | | | | | | | | | | | | | | | | +----------------------------------------------------+ Best States ------------- Heat Dissipation 37 Energy Generation 5 Energy Capacity 100 Matter Stores 194 Matter Capacity 300 Sight Range 16 Terrain Scan Density 10 Evasion (%) 63 Item Schematics ----------------- None Robot Schematics ------------------ None Fabricated ------------ Nothing Alien Tech Used ----------------- None Achievements -------------- None Challenges ------------ None Game ------ Seed RemoteSwordExpander Manual? 0 Play Time 00:07:18 Cumulative 128.4 hours Start 2023.04.19 @ 18:34:12 End 2023.04.19 @ 18:40:56 Sessions 1 Manual Loads 0 Difficulty Rogue Special Mode None Game No. 368 Rogue 368 Adventurer 0 Explorer 0 Win Type - Total 4 Types 4/0/0/0/0/0/0/0/0 Lore% 60 Gallery% 63 Achievement% 54 Wizard Run 0 Options --------- ASCII 0 Keyboard 0 Movement Numpad Keybinds 0 Fullscreen 1 Font 12/Smallcaps Map View 83x54 Tactical HUD 1 Map Filters NONE Filters NONE Steam 1 RUN: 55a82e8d-17c2-4196-8a6b-36c8d24671d0